bitfinex/quotes_BTCUSD_20251215
["timestamp","ask_amount","ask_price","bid_price","bid_amount"]
[1765812379729,0.11503439,86841.0,86840.0,0.007]
[1765812380127,0.03035463,86846.0,86840.0,0.002]
[1765812380128,0.23030433,86842.0,86840.0,0.002]
[1765812380330,0.13707666,86841.0,86840.0,0.002]
[1765812380538,0.11403439,86827.0,86826.0,0.03504]
[1765812380716,0.24185651,86829.0,86818.0,0.01884]
[1765812380924,0.01151569,86838.0,86818.0,0.00030113]
[1765812381146,0.11403439,86819.0,86818.0,0.01993699]
[1765812381491,0.11403439,86819.0,86818.0,0.00030113]
[1765812381625,0.11403439,86819.0,86794.0,0.07464]
[1765812381626,0.00131173,86819.0,86794.0,0.07464]
[1765812381964,0.11403439,86804.0,86803.0,0.04395794]
[1765812382179,0.08190357,86819.0,86818.0,0.001]
[1765812382311,0.00131173,86819.0,86818.0,0.001]
[1765812382510,0.11403439,86819.0,86818.0,0.001]
[1765812383342,0.11403439,86805.0,86804.0,0.09312659]
[1765812383544,0.11403439,86805.0,86804.0,0.0878009]
[1765812383832,0.001,86819.0,86818.0,0.003]
[1765812384035,0.49715375,86830.0,86818.0,0.00330113]
[1765812384239,0.05754957,86819.0,86818.0,0.00030113]
[1765812384432,0.01151688,86829.0,86818.0,0.00030113]
[1765812384697,0.05754957,86819.0,86818.0,0.00030113]
[1765812384910,0.49715375,86828.0,86818.0,0.00030113]
[1765812385040,0.11403439,86819.0,86818.0,0.00030113]
[1765812385242,0.01151728,86826.0,86808.0,0.02303935]
[1765812385447,0.01548643,86804.0,86794.0,0.01848688]
[1765812385654,0.01548643,86804.0,86795.0,0.01884]
[1765812385868,0.11403439,86802.0,86786.0,0.01884]
[1765812386541,0.11403439,86802.0,86784.0,0.03614]
[1765812386859,0.47352439,86802.0,86782.0,0.0062]
[1765812387060,0.45158069,86802.0,86782.0,0.0062]
[1765812387242,0.47487073,86802.0,86782.0,0.0062]
[1765812387680,1.47487073,86802.0,86801.0,0.012]
[1765812388020,1.52355555,86802.0,86801.0,0.012]
[1765812388192,0.01152272,86785.0,86782.0,0.0062]
[1765812388475,1.44213439,86783.0,86782.0,0.0062]
[1765812388597,1.46542443,86783.0,86782.0,0.0062]
[1765812388795,0.55305443,86783.0,86782.0,0.0062]
[1765812389040,0.53421443,86783.0,86782.0,0.0062]
[1765812389236,0.52976439,86783.0,86782.0,0.0062]
[1765812389439,0.52976439,86783.0,86782.0,0.0012]
[1765812389640,0.56430551,86783.0,86782.0,0.0012]
[1765812389840,0.50782069,86783.0,86782.0,0.0012]
[1765812390057,0.72240551,86783.0,86782.0,0.0012]
[1765812390226,0.611941,86783.0,86782.0,0.0012]
[1765812390424,0.002,86783.0,86782.0,0.0012]
[1765812390756,0.34924957,86783.0,86782.0,0.0022]
[1765812391053,0.36808957,86783.0,86782.0,0.0022]
[1765812391260,0.47673069,86783.0,86782.0,0.0012]
[1765812391458,0.41918112,86783.0,86782.0,0.0012]
[1765812391635,0.53421551,86783.0,86782.0,0.0032]
[1765812391851,0.53552724,86783.0,86782.0,0.0032]
[1765812392087,0.53552724,86783.0,86782.0,0.0012]
[1765812392088,0.46142724,86783.0,86782.0,0.0012]
[1765812392294,0.46142724,86783.0,86782.0,0.00979375]
[1765812392295,0.002,86783.0,86782.0,0.00979375]
[1765812392498,0.003,86783.0,86782.0,0.08277375]
[1765812392637,0.02910103,86822.0,86782.0,0.08277375]
[1765812392836,0.49715375,86820.0,86790.0,0.00099999]
[1765812393087,0.07852406,86819.0,86791.0,0.03502346]
[1765812393238,0.05754957,86828.0,86792.0,0.00593692]
[1765812393436,0.11403439,86820.0,86819.0,0.0252]
[1765812393675,0.11403439,86820.0,86819.0,0.02550113]
[1765812394472,0.05754957,86811.0,86801.0,0.0252]
[1765812394756,0.11403439,86803.0,86802.0,0.04024155]
[1765812394994,0.00131173,86820.0,86808.0,0.01151967]
[1765812395174,0.2907,86829.0,86809.0,0.02303908]
[1765812395382,0.2907,86829.0,86809.0,0.09432021]
[1765812395584,0.51364018,86820.0,86819.0,0.006]
[1765812395816,0.001,86820.0,86819.0,0.006]
[1765812396021,0.35971,86820.0,86819.0,0.006]
[1765812396225,0.41725957,86820.0,86819.0,0.006]
[1765812396582,0.41725957,86820.0,86819.0,0.009]
[1765812396784,0.41625957,86820.0,86819.0,0.003]
[1765812397000,0.01151795,86821.0,86794.0,0.07098]
[1765812397207,0.11403439,86796.0,86795.0,0.02797703]
[1765812397412,0.11403439,86796.0,86795.0,0.00030113]
[1765812397857,0.11403439,86796.0,86795.0,0.07128113]
[1765812397988,0.11403439,86799.0,86795.0,0.08797107]
[1765812398193,0.11403439,86796.0,86795.0,0.00030113]
[1765812399237,0.03035795,86821.0,86795.0,0.07128113]
[1765812399238,0.11403439,86802.0,86795.0,0.07128113]
[1765812399432,0.11403439,86802.0,86796.0,0.05001299]
[1765812399632,0.11403439,86802.0,86797.0,0.01152113]
[1765812399831,0.04605747,86833.0,86797.0,0.01152113]
[1765812399832,0.02910103,86857.0,86801.0,0.00030113]
[1765812400034,0.01151158,86869.0,86801.0,0.00030113]
[1765812400035,0.49715375,86860.0,86841.0,0.02655]
[1765812400237,0.49715375,86860.0,86841.0,0.04569113]
[1765812400412,0.11403439,86846.0,86841.0,0.03267217]
[1765812400617,0.49715375,86851.0,86841.0,0.02655]
[1765812400618,0.01573951,86842.0,86841.0,0.02655]
[1765812400896,0.11428747,86842.0,86841.0,0.09783113]
[1765812401112,0.11428747,86842.0,86841.0,0.02685113]
[1765812401310,0.11428747,86842.0,86841.0,0.09783113]
[1765812401644,0.11428747,86842.0,86841.0,0.02685113]
[1765812401842,0.11428747,86842.0,86841.0,0.09783113]
[1765812402082,0.00025308,86842.0,86841.0,0.00030113]
[1765812402651,0.00025308,86842.0,86841.0,0.31891337]
[1765812402783,0.25,86900.0,86841.0,0.31891337]
[1765812402784,0.11403439,86867.0,86850.0,0.00099999]
[1765812403132,0.01548643,86877.0,86872.0,0.01781]
[1765812403334,0.01150721,86902.0,86872.0,0.10793113]
[1765812403546,0.49715375,86882.0,86873.0,0.01251012]
[1765812403753,0.00098026,86873.0,86863.0,0.00030113]
[1765812403957,0.001,86867.0,86857.0,0.01847481]
[1765812404107,0.001,86867.0,86863.0,0.00030113]
[1765812404489,0.11403439,86865.0,86864.0,0.07098]
[1765812404699,0.11403439,86865.0,86864.0,0.0802566]
[1765812404868,0.11403439,86867.0,86864.0,0.0802566]
[1765812405219,0.001,86882.0,86869.0,0.01151158]
[1765812405457,0.001,86882.0,86873.0,0.01151105]
[1765812405677,0.001,86882.0,86881.0,0.00030113]
[1765812405818,0.001,86882.0,86881.0,0.04712007]
[1765812406017,0.11403439,86883.0,86881.0,0.10858952]
[1765812406262,0.11403439,86883.0,86882.0,0.01884]
[1765812406470,0.11403439,86883.0,86870.0,0.00099999]
[1765812406471,0.11403439,86883.0,86867.0,0.07098]
[1765812406706,0.11403439,86869.0,86868.0,0.0373239]
[1765812406987,0.01548643,86869.0,86868.0,0.00030113]
[1765812407188,0.11403439,86869.0,86868.0,0.00030113]
[1765812407407,0.11403439,86876.0,86868.0,0.07128113]
[1765812407626,0.11403439,86869.0,86868.0,0.00030113]
[1765812407969,0.11403439,86869.0,86867.0,0.003]
[1765812407970,0.11403439,86868.0,86867.0,0.003]
[1765812408158,0.00131173,86868.0,86867.0,0.003]
[1765812408562,0.00131173,86868.0,86849.0,0.03444686]
[1765812408563,0.11403439,86855.0,86849.0,0.03444686]
[1765812408804,0.11403439,86850.0,86849.0,0.01884]
[1765812408977,0.11403439,86850.0,86849.0,0.01232369]
[1765812409179,0.11403439,86855.0,86849.0,0.00030113]
[1765812409588,0.11403439,86855.0,86851.0,0.01151397]
[1765812409814,0.11403439,86855.0,86852.0,0.07098]
[1765812410016,0.11403439,86855.0,86854.0,0.00030113]
[1765812411028,0.11403439,86851.0,86850.0,0.01750113]
[1765812411414,0.00131173,86851.0,86850.0,0.01750113]
[1765812411622,0.00131173,86851.0,86849.0,0.008]
[1765812411954,0.002,86855.0,86849.0,0.008]
[1765812411955,0.11433551,86850.0,86849.0,0.008]
[1765812412330,0.11433551,86850.0,86837.0,0.01848153]
[1765812412331,0.23029156,86847.0,86820.0,0.07098]
[1765812412536,0.00409641,86826.0,86822.0,0.0188]
[1765812412748,0.00409641,86824.0,86823.0,0.01848092]
[1765812412950,0.49715375,86840.0,86823.0,0.01848092]
[1765812412951,0.00030112,86847.0,86823.0,0.01848092]
[1765812413148,0.11403439,86826.0,86823.0,0.01848092]
[1765812413398,0.11403439,86826.0,86821.0,0.03013371]
[1765812413564,0.11403439,86826.0,86822.0,0.08297137]
[1765812414166,0.00030112,86847.0,86822.0,0.08297137]
[1765812414365,0.11403439,86823.0,86822.0,0.08297137]
[1765812414687,0.11403439,86823.0,86822.0,0.01199137]
[1765812414842,0.11403439,86822.0,86821.0,0.0116523]
[1765812415043,0.11403439,86822.0,86818.0,0.0188]
[1765812415363,0.11503439,86826.0,86819.0,0.07098]
[1765812415565,0.11403439,86826.0,86819.0,0.08249821]
[1765812415763,0.11503439,86823.0,86822.0,0.004]
[1765812415946,0.00231174,86823.0,86822.0,0.012]
[1765812416163,0.11634613,86823.0,86822.0,0.012]
[1765812416349,0.11634613,86823.0,86822.0,0.004]
[1765812416555,0.18435613,86823.0,86822.0,0.004]
[1765812416756,0.2073984,86823.0,86822.0,0.004]
[1765812417063,0.53263952,86823.0,86822.0,0.004]
[1765812417246,0.00131174,86823.0,86819.0,0.007]
[1765812417445,0.00131174,86823.0,86796.0,0.07098]
[1765812417446,0.11403439,86807.0,86797.0,0.01618289]
[1765812417650,0.11403439,86807.0,86799.0,0.01152087]
[1765812417849,0.11403439,86807.0,86800.0,0.01618233]
[1765812418009,0.11403439,86799.0,86798.0,0.0166895]
[1765812418215,0.11403439,86799.0,86793.0,0.01152166]
[1765812418414,0.11403439,86799.0,86790.0,0.10130206]
[1765812418652,0.11403439,86799.0,86791.0,0.03799928]
[1765812418860,0.11403439,86799.0,86791.0,0.10897928]
[1765812419257,0.11403439,86799.0,86792.0,0.07098]
[1765812419416,0.11403439,86790.0,86789.0,0.0252]
[1765812419620,0.11403439,86790.0,86789.0,0.044]
[1765812420248,0.00409641,86790.0,86789.0,0.11498]
[1765812420415,0.49715375,86800.0,86789.0,0.05944881]
[1765812420620,0.49745487,86800.0,86783.0,0.01734072]
[1765812420987,0.49745487,86800.0,86782.0,0.0012]
[1765812420988,0.11403439,86783.0,86782.0,0.0012]
[1765812421192,0.49715375,86792.0,86782.0,0.0012]
[1765812421423,0.05785069,86783.0,86782.0,0.0012]
[1765812421599,0.00439753,86783.0,86782.0,0.0012]
[1765812421796,0.00409641,86783.0,86782.0,0.0012]
[1765812421937,0.2907,86790.0,86782.0,0.0012]
[1765812422148,0.11403439,86784.0,86783.0,0.001]
[1765812422366,0.001,86800.0,86786.0,0.23044971]
[1765812422563,0.001,86800.0,86783.0,0.09204976]
[1765812422564,0.001,86800.0,86787.0,0.04985907]
[1765812422790,0.49815375,86800.0,86787.0,0.03431995]
[1765812422993,0.11403439,86788.0,86787.0,0.01669159]
[1765812423190,0.11403439,86786.0,86782.0,0.01789296]
[1765812423388,0.001,86784.0,86783.0,0.004]
[1765812423608,0.00130112,86784.0,86783.0,0.004]
[1765812423823,0.11403439,86783.0,86782.0,0.0012]
[1765812424024,0.11503439,86783.0,86782.0,0.0012]
[1765812424170,0.11403439,86783.0,86782.0,0.0012]
[1765812425005,0.11403439,86783.0,86782.0,0.00949262]
[1765812425205,0.11403439,86783.0,86782.0,0.0012]
[1765812425683,0.11403439,86783.0,86782.0,0.0032]
[1765812425888,0.00409641,86783.0,86782.0,0.0032]
[1765812426110,0.06950286,86783.0,86782.0,0.0032]
[1765812426312,0.13868952,86783.0,86782.0,0.0032]
[1765812426514,0.02465513,86783.0,86782.0,0.0032]
[1765812426736,0.02975154,86783.0,86782.0,0.0082]
[1765812426913,0.02975154,86783.0,86782.0,0.0062]
[1765812427132,0.09764154,86783.0,86782.0,0.0062]
[1765812427337,0.09664154,86783.0,86782.0,0.0022]
[1765812427884,0.4407947,86783.0,86782.0,0.0022]
[1765812428053,0.41775243,86783.0,86782.0,0.0022]
[1765812428234,0.29231286,86783.0,86782.0,0.0022]
[1765812428617,0.29231286,86783.0,86782.0,0.0012]
[1765812428788,0.40734725,86783.0,86782.0,0.0062]
[1765812428947,0.11764725,86783.0,86782.0,0.0062]
[1765812429144,0.11503439,86783.0,86782.0,0.0012]
[1765812429446,0.11503439,86783.0,86782.0,0.0042]
[1765812429447,0.002,86783.0,86782.0,0.0042]
[1765812429671,0.002,86783.0,86782.0,0.02153889]
[1765812429926,0.11603439,86783.0,86782.0,0.07471]
[1765812430052,0.03454112,86785.0,86783.0,0.23045988]
[1765812430252,0.03454112,86785.0,86782.0,0.10203312]
[1765812430459,0.03454112,86785.0,86783.0,0.07051]
[1765812430656,0.03454112,86785.0,86782.0,0.0012]
[1765812430855,0.11403439,86783.0,86782.0,0.0012]
[1765812431106,0.001,86783.0,86782.0,0.0062]
[1765812431557,0.001,86783.0,86782.0,0.07771]
[1765812431738,0.001,86783.0,86782.0,0.09520373]
[1765812432071,0.01151688,86829.0,86782.0,0.09520373]
[1765812432072,0.49715375,86830.0,86802.0,0.01152047]
[1765812432266,0.49715375,86830.0,86784.0,0.03454112]
[1765812432267,0.11403439,86834.0,86829.0,0.02038]
[1765812432437,0.00161286,86830.0,86829.0,0.02038]
[1765812432613,0.00409641,86830.0,86829.0,0.02038]
[1765812432784,0.0188,86858.0,86829.0,0.07896]
[1765812432980,0.11403439,86839.0,86830.0,0.03281026]
[1765812433314,0.0018659,86850.0,86831.0,0.02303323]
[1765812433530,0.11403439,86844.0,86837.0,0.01151582]
[1765812433731,0.11590029,86850.0,86849.0,0.01781]
[1765812433933,0.0018659,86850.0,86849.0,0.01781]
[1765812434116,0.11403439,86843.0,86839.0,0.0230311]
[1765812434317,0.11403439,86843.0,86840.0,0.01004111]
[1765812434677,0.11403439,86844.0,86840.0,0.01004111]
[1765812434877,0.11403439,86844.0,86840.0,0.06862111]
[1765812435550,0.11403439,86839.0,86838.0,0.02303135]
[1765812435731,0.00025304,86850.0,86838.0,0.0188]
[1765812435976,0.78685131,86850.0,86849.0,0.002]
[1765812436175,0.11690029,86850.0,86849.0,0.002]
[1765812436364,0.13994256,86850.0,86849.0,0.002]
[1765812436927,0.13894256,86850.0,86849.0,0.002]
[1765812437128,0.13994256,86850.0,86849.0,0.008]
[1765812437339,0.43064256,86850.0,86849.0,0.006]
[1765812437542,0.01151503,86843.0,86840.0,0.004]
[1765812437746,0.40473439,86841.0,86840.0,0.004]
[1765812437914,0.11403439,86830.0,86829.0,0.02038]
[1765812438234,0.11403439,86839.0,86830.0,0.05858]
[1765812438439,0.11403439,86843.0,86831.0,0.01732797]
[1765812438599,0.11403439,86834.0,86831.0,0.01732797]
[1765812438780,0.01151304,86858.0,86840.0,0.002]
[1765812438985,0.11403439,86841.0,86840.0,0.002]
[1765812439186,0.00409641,86843.0,86839.0,0.0188]
[1765812439439,0.24176055,86863.0,86839.0,0.0188]
[1765812439440,0.11403439,86854.0,86847.0,0.0115145]
[1765812439656,0.11403439,86862.0,86848.0,0.01732862]
[1765812439785,0.11403439,86862.0,86849.0,0.02706616]
[1765812439987,0.11403439,86862.0,86850.0,0.07590822]
[1765812440289,0.11403439,86862.0,86855.0,0.01151344]
[1765812440508,0.11403439,86862.0,86856.0,0.01732702]
[1765812440686,0.11403439,86862.0,86857.0,0.0094707]
[1765812440881,0.11403439,86862.0,86858.0,0.01732662]
[1765812441092,0.11403439,86866.0,86857.0,0.0680507]
[1765812441290,0.11403439,86866.0,86858.0,0.01732661]
[1765812441555,0.00161286,86880.0,86858.0,0.01732661]
[1765812441556,0.05744966,86862.0,86858.0,0.01732661]
[1765812441729,0.05744966,86862.0,86849.0,0.02706616]
[1765812441730,0.00161286,86862.0,86849.0,0.02706616]
[1765812441939,0.00161286,86862.0,86850.0,0.02136516]
[1765812441940,0.11403439,86854.0,86850.0,0.02136516]
[1765812442118,0.11403439,86854.0,86846.0,0.0188]
[1765812442352,0.00161286,86862.0,86847.0,0.0799459]
[1765812442557,0.00261286,86862.0,86850.0,0.006]
[1765812442753,0.00261286,86862.0,86851.0,0.01669024]
[1765812443004,0.11403439,86865.0,86858.0,0.001]
[1765812443208,0.72839479,86890.0,86858.0,0.001]
[1765812443209,0.00161286,86875.0,86860.0,0.01151277]
[1765812443403,0.0375,86909.0,86860.0,0.72839479]
[1765812443699,0.23013575,86906.0,86873.0,0.01151105]
[1765812443916,0.0375,86909.0,86883.0,0.01150973]
[1765812443917,0.01480945,86905.0,86883.0,0.01150973]
[1765812444084,0.01480945,86905.0,86874.0,0.03547552]
[1765812444085,0.0004,86920.0,86889.0,0.23017715]
[1765812444294,0.28759476,86902.0,86890.0,0.03563336]
[1765812444494,0.72839479,86900.0,86891.0,0.0188]
[1765812444813,0.01150628,86909.0,86860.0,0.00099999]
[1765812444814,0.11403439,86885.0,86883.0,0.01781]
[1765812444963,0.02304227,86908.0,86884.0,0.02810775]
[1765812445161,0.72879479,86920.0,86885.0,0.02301893]
[1765812445162,0.11403439,86898.0,86885.0,0.02301893]
[1765812445365,0.0004,86920.0,86900.0,0.01150747]
[1765812445563,0.0004,86920.0,86905.0,0.01150681]
[1765812445764,0.0004,86920.0,86906.0,0.02301337]
[1765812445985,0.0004,86920.0,86907.0,0.02719612]
[1765812446189,0.00409641,86909.0,86908.0,0.0188]
[1765812446434,0.00201286,86913.0,86908.0,0.0188]
[1765812446645,0.00301286,86913.0,86908.0,0.0188]
[1765812446821,0.0014,86913.0,86909.0,0.01903916]
[1765812446963,0.0014,86913.0,86910.0,0.01150615]
[1765812447164,0.0014,86913.0,86911.0,0.05429544]
[1765812447165,0.0004,86913.0,86911.0,0.05429544]
[1765812447452,0.0004,86913.0,86912.0,0.05858]
[1765812448706,0.0004,86913.0,86912.0,0.06258]
[1765812449085,0.0014,86913.0,86912.0,0.31001114]
[1765812449319,0.0014,86913.0,86912.0,0.15906342]
[1765812449492,0.0014,86913.0,86912.0,0.17637608]
[1765812449639,0.0004,86913.0,86912.0,0.07989266]
[1765812449838,0.0004,86913.0,86912.0,0.08689266]
[1765812449839,0.0014,86913.0,86912.0,0.08689266]
[1765812450440,0.2907,86945.0,86913.0,0.05859]
[1765812450606,0.0002538,86944.0,86915.0,0.01150549]
[1765812450813,0.0002538,86944.0,86913.0,0.07899]
[1765812450814,0.00186666,86944.0,86916.0,0.02301072]
[1765812451002,0.00161286,86944.0,86917.0,0.07104066]
[1765812451313,0.02851749,86965.0,86917.0,0.07104066]
[1765812451314,0.07288,86981.0,86947.0,0.01150125]
[1765812451489,0.05744966,86962.0,86948.0,0.12077225]
[1765812451695,0.05744966,86964.0,86949.0,0.03623047]
[1765812451894,0.72839479,86980.0,86948.0,0.12077225]
[1765812451895,0.00161286,86962.0,86948.0,0.03918]
[1765812452239,0.00161286,86962.0,86939.0,0.02038]
[1765812452240,0.001,86945.0,86939.0,0.02038]
[1765812452569,0.00161286,86949.0,86939.0,0.02038]
[1765812452772,0.00161286,86949.0,86940.0,0.007897]
[1765812452971,0.11400013,86940.0,86932.0,0.02300648]
[1765812453175,0.00161286,86940.0,86931.0,0.02038]
[1765812453370,0.11400013,86938.0,86931.0,0.02038]
[1765812453570,0.00161286,86932.0,86919.0,0.02300992]
[1765812453941,0.00161286,86932.0,86919.0,0.00746206]
[1765812454474,0.00161286,86932.0,86919.0,0.03047198]
[1765812455229,0.00161286,86932.0,86920.0,0.02300966]
[1765812455429,0.01150364,86929.0,86919.0,0.00846206]
[1765812455666,0.11400013,86921.0,86919.0,0.00846206]
[1765812455797,0.00161286,86932.0,86920.0,0.0070633]
[1765812455998,0.00161286,86932.0,86921.0,0.02300939]
[1765812456199,0.00161286,86932.0,86920.0,0.04157779]
[1765812456412,0.22998257,86964.0,86930.0,0.0115035]
[1765812456637,0.30946,86962.0,86931.0,0.10035675]
[1765812456838,0.01149967,86959.0,86932.0,0.03649476]
[1765812457015,0.78584445,86942.0,86932.0,0.03649476]
[1765812457218,0.78584445,86942.0,86906.0,0.01150668]
[1765812457219,0.01150337,86931.0,86905.0,0.05859]
[1765812457421,0.11400013,86931.0,86919.0,0.003]
[1765812457621,0.01150324,86932.0,86919.0,0.004]
[1765812457847,0.14879505,86941.0,86919.0,0.004]
[1765812457848,0.03454112,86927.0,86919.0,0.003]
[1765812458747,0.14854125,86927.0,86915.0,0.02301098]
[1765812458928,0.01150417,86925.0,86919.0,0.001]
[1765812459130,0.01150417,86925.0,86888.0,0.01150906]
[1765812459131,0.01150536,86916.0,86893.0,0.05859]
[1765812459330,0.01150469,86921.0,86893.0,0.05859]
[1765812459331,0.11400013,86915.0,86894.0,0.02301654]
[1765812459532,0.11400013,86900.0,86894.0,0.02301654]
[1765812459730,0.01150628,86909.0,86895.0,0.01003665]
[1765812459913,0.00161286,86909.0,86896.0,0.02004875]
[1765812460545,0.23007709,86928.0,86919.0,0.002]
[1765812460823,0.72839479,86930.0,86897.0,0.07735]
[1765812460824,0.01150509,86918.0,86898.0,0.02301548]
[1765812460956,0.00161286,86918.0,86899.0,0.01003655]
[1765812461179,0.12550827,86895.0,86894.0,0.006]
[1765812461546,0.00186666,86895.0,86894.0,0.006]
[1765812461680,0.001,86900.0,86894.0,0.006]
[1765812461889,0.00261286,86900.0,86894.0,0.006]
[1765812462240,0.01412033,86900.0,86894.0,0.006]
[1765812462432,0.01412033,86900.0,86879.0,0.02302052]
[1765812462433,0.002,86895.0,86879.0,0.02302052]
[1765812462731,0.002,86895.0,86880.0,0.09207345]
[1765812462872,0.002,86895.0,86890.0,0.0115088]
[1765812463075,0.002,86895.0,86893.0,0.23016789]
[1765812463273,0.002,86895.0,86894.0,0.08160654]
[1765812463473,0.00139092,86894.0,86886.0,0.05001839]
[1765812463687,0.001,86895.0,86889.0,0.01150893]
[1765812463892,0.001,86895.0,86890.0,0.0931164]
[1765812464132,0.002,86900.0,86890.0,0.0816076]
[1765812464332,0.11400013,86905.0,86891.0,0.05859]
[1765812464534,0.001,86895.0,86894.0,0.007]
[1765812464854,0.001,86895.0,86894.0,0.04117907]
[1765812465096,0.001,86895.0,86894.0,0.11757907]
[1765812465505,0.001,86895.0,86894.0,0.05898907]
[1765812465641,0.001,86895.0,86894.0,0.02481]
[1765812466053,0.11400013,86898.0,86894.0,0.04082654]
[1765812466240,0.2907,86911.0,86903.0,0.01150708]
[1765812466241,0.00161286,86911.0,86903.0,0.01150708]
[1765812466462,0.00161286,86911.0,86895.0,0.08160628]
[1765812466463,0.00161286,86911.0,86904.0,0.0230139]
[1765812466662,0.00161286,86911.0,86898.0,0.01150774]
[1765812466867,0.00161286,86911.0,86902.0,0.23014256]
[1765812467041,0.03677,86939.0,86899.0,0.08546867]
[1765812467042,0.72839479,86940.0,86914.0,0.01150562]
[1765812467238,0.0656549,86951.0,86915.0,0.02301098]
[1765812467239,0.01150377,86928.0,86915.0,0.02301098]
[1765812467465,0.0002538,86927.0,86906.0,0.01876]
[1765812467810,0.24156658,86933.0,86906.0,0.01876]
[1765812467811,0.0288849,86952.0,86908.0,0.05001839]
[1765812467988,0.01150271,86936.0,86909.0,0.08160257]
[1765812468168,0.05744966,86923.0,86909.0,0.08160257]
[1765812468514,0.05744966,86923.0,86907.0,0.007735]
[1765812468515,0.00161286,86923.0,86907.0,0.007735]
[1765812468720,0.0002538,86936.0,86907.0,0.007735]
[1765812468721,0.03677,86948.0,86922.0,0.0204]
[1765812468893,0.01150178,86943.0,86923.0,0.10779904]
[1765812469213,0.00233847,86924.0,86917.0,0.0204]
[1765812469369,0.01150284,86935.0,86918.0,0.02301019]
[1765812469713,0.01150284,86935.0,86908.0,0.05859]
[1765812469714,0.23007648,86928.0,86908.0,0.02301284]
[1765812470010,0.2909538,86927.0,86908.0,0.02301284]
[1765812470169,0.01175783,86926.0,86908.0,0.02301284]
[1765812470374,0.2907,86929.0,86908.0,0.02301284]
[1765812470575,0.2907,86929.0,86928.0,0.0204]
[1765812470576,0.30946,86929.0,86928.0,0.0204]
[1765812470776,0.30946,86929.0,86910.0,0.01473976]
[1765812470976,0.05744966,86917.0,86909.0,0.06469145]
[1765812471199,0.2907,86929.0,86910.0,0.02301231]
[1765812471401,0.2907,86929.0,86911.0,0.01150602]
[1765812471604,0.2907,86929.0,86912.0,0.02301178]
[1765812471901,0.00161286,86935.0,86928.0,0.0204]
[1765812472449,0.01150059,86952.0,86929.0,0.02300728]
[1765812472736,0.01876,86954.0,86932.0,0.01150324]
[1765812472941,0.01876,86954.0,86933.0,0.02300622]
[1765812472942,0.11400013,86943.0,86933.0,0.02300622]
[1765812473144,0.05220877,86966.0,86936.0,0.01150271]
[1765812473342,0.01149927,86962.0,86937.0,0.02300516]
[1765812473484,0.001,86952.0,86937.0,0.08159516]
[1765812473712,0.001,86952.0,86948.0,0.01150112]
[1765812474041,0.001,86952.0,86946.0,0.01150139]
[1765812474042,0.0288849,86977.0,86951.0,0.02038]
[1765812474241,0.01149795,86972.0,86952.0,0.09481451]
[1765812474558,0.0002538,86976.0,86952.0,0.09481451]
[1765812474559,0.11400013,86958.0,86952.0,0.09481451]
[1765812475124,0.001,86966.0,86953.0,0.05859]
[1765812475321,0.001,86966.0,86954.0,0.03450099]
[1765812475644,0.03494112,86986.0,86966.0,0.01149874]
[1765812475645,0.0004,86986.0,86966.0,0.01149874]
[1765812475808,0.05744966,86974.0,86967.0,0.12449565]
[1765812476012,0.01149464,86997.0,86973.0,0.00161287]
[1765812476246,0.11400013,87005.0,86977.0,0.22994376]
[1765812476449,0.0002538,87004.0,86980.0,0.01149689]
[1765812476765,0.0004,87010.0,86981.0,0.04175352]
[1765812476990,0.0004,87010.0,86999.0,0.01149438]
[1765812477194,0.0004,87010.0,86998.0,0.24138361]
[1765812477195,0.0004,87010.0,87009.0,0.00161287]
[1765812477589,0.00545117,87010.0,87009.0,0.02459899]
[1765812477976,0.00545117,87010.0,87009.0,0.09375899]
[1765812478291,0.00545117,87010.0,87009.0,0.12842115]
[1765812478492,0.00545117,87010.0,87009.0,0.32362026]
[1765812478696,0.00545117,87010.0,87009.0,0.35065253]
[1765812479090,0.00545117,87010.0,87009.0,0.46189256]
[1765812479291,0.08269636,87059.0,87025.0,0.05001839]
[1765812479492,0.03677,87063.0,87026.0,0.03807138]
[1765812479493,0.24122136,87057.0,87026.0,0.03807138]
[1765812479693,0.01148738,87052.0,87026.0,0.14528425]
[1765812479899,0.22974826,87052.0,87027.0,0.01876]
[1765812480105,0.24120772,87062.0,87030.0,0.01149029]
[1765812480266,0.24120772,87062.0,87031.0,0.09214031]
[1765812480267,0.11400013,87057.0,87031.0,0.09214031]
[1765812480468,0.01148514,87069.0,87038.0,0.01148923]
[1765812480709,0.04825461,87073.0,87039.0,0.04903791]
[1765812480710,0.11400013,87053.0,87039.0,0.04903791]
[1765812480911,0.22976357,87046.0,87040.0,0.01872]
[1765812481126,0.11400013,87032.0,87017.0,0.03644]
[1765812481318,0.63448349,87039.0,87017.0,0.03644]
[1765812481487,0.72839479,87030.0,87026.0,0.001]
[1765812481704,0.52051373,87027.0,87026.0,0.001]
[1765812481868,0.2907,87027.0,87026.0,0.001]
[1765812482763,0.001,87030.0,87018.0,0.02298375]
[1765812482899,0.22980854,87029.0,87019.0,0.00925337]
[1765812483102,0.22980854,87029.0,87017.0,0.004]
[1765812483103,0.5205375,87018.0,87017.0,0.004]
[1765812483303,0.01149663,86982.0,86973.0,0.02841104]
[1765812483630,0.3021957,86989.0,86973.0,0.02841104]
[1765812483939,0.22994867,86976.0,86974.0,0.0083571]
[1765812484152,0.01149729,86977.0,86960.0,0.01872]
[1765812484439,0.01149729,86977.0,86940.0,0.04779218]
[1765812484440,0.2907,86969.0,86940.0,0.03629]
[1765812484641,0.01150059,86952.0,86930.0,0.03629]
[1765812484872,0.01150059,86952.0,86919.0,0.08105496]
[1765812484873,0.2907,86949.0,86935.0,0.01872]
[1765812485067,0.2907,86949.0,86928.0,0.00307226]
[1765812485068,0.2907,86949.0,86929.0,0.01872]
[1765812485196,0.01150297,86934.0,86929.0,0.01872]
[1765812485395,0.01150297,86934.0,86928.0,0.00307226]
[1765812485396,0.01150337,86931.0,86928.0,0.00307226]
[1765812486106,0.2907,86929.0,86928.0,0.00307226]
[1765812486972,0.70339294,86929.0,86928.0,0.00307226]
[1765812487326,0.03022297,86934.0,86928.0,0.00307226]
[1765812487327,0.2907,86930.0,86928.0,0.00307226]
[1765812487527,0.72839479,86940.0,86928.0,0.00307226]
[1765812487726,0.97939478,86960.0,86933.0,0.01150311]
[1765812487727,0.2907,86949.0,86933.0,0.01150311]
[1765812487949,0.0114998,86958.0,86934.0,0.02676556]
[1765812488234,0.08839041,86981.0,86939.0,0.01150231]
[1765812488235,0.01149874,86966.0,86939.0,0.01150231]
[1765812488434,0.11400013,86956.0,86940.0,0.01872]